[Event "DVM U20w 2019"]
[Site "Braunschweig"]
[Date "2019.12.28"]
[Round "3"]
[White "Kung, Fanny"]
[Black "Strobel, Miriam"]
[Result "1/2-1/2"]
[ECO "C27"]
[WhiteElo "1426"]
[BlackElo "1299"]
[Annotator "NA RC"]
[PlyCount "73"]
[EventDate "2019.12.27"]
[EventType "team-tourn"]
[EventRounds "7"]
[EventCountry "GER"]
[SourceTitle "playchess.com"]
[Source "ChessBase"]
[SourceQuality "1"]
[WhiteTeam "Leegebrucher SF"]
[BlackTeam "SC Erlangen 48/88"]
[TimeControl "40/5400+30:1800+30"]

1. e4 {[%emt 0:00:00]} e5 {[%emt 0:00:00]} 2. Nc3 {[%emt 0:00:00]} Nf6 {[%emt 0:00:00]} 3. Bc4 {[%emt 0:00:00]} Nxe4 {[%emt 0:02:36]} 4. Qh5 {[%emt 0:04:11]} Qe7 {[%emt 0:05:21]} 5. Nxe4 {[%emt 0:11:44]} g6 {[%emt 0:03:47]} 6. Qe2 {[%emt 0:10:15]} Nc6 {[%emt 0:08:49]} 7. Nf3 {[%emt 0:08:54]} f5 {[%emt 0:03:13]} 8. Nc3 {[%emt 0:09:56]} e4 {[%emt 0:02:48]} 9. Ng1 {[%emt 0:00:47]} Nd4 {[%emt 0:00:45]} 10. Qd1 {[%emt 0:00:24]} Qg5 {[%emt 0:32:46]} 11. Kf1 {[%emt 0:10:36]} Bc5 {[%emt 0:02:49]} 12. d3 {[%emt 0:02:23]} Qh4 {[%emt 0:01:32]} 13. g3 {[%emt 0:01:56]} Qf6 {[%emt 0:01:15]} 14. Nd5 {[%emt 0:03:17]} Qc6 {[%emt 0:02:50]} 15. dxe4 {[%emt 0:05:09]} fxe4 {[%emt 0:00:31]} 16. c3 {[%emt 0:00:50]} Nf5 {[%emt 0:01:48]} 17. Qe2 {[%emt 0:07:39]} e3 {[%emt 0:04:36]} 18. fxe3 {[%emt 0:02:43]} Rf8 {[%emt 0:00:12]} 19. Nf3 {[%emt 0:00:45]} Kd8 {[%emt 0:03:25]} 20. e4 {[%emt 0:03:47]} Ne7 {[%emt 0:01:55]} 21. Nxe7 {[%emt 0:02:17]} Bxe7 {[%emt 0:00:07]} 22. Bh6 {[%emt 0:01:49]} Rf6 {[%emt 0:00:10]} 23. Bg7 {[%emt 0:00:31]} Rxf3+ {[%emt 0:02:54]} 24. Qxf3 {[%emt 0:00:45]} Qxc4+ {[%emt 0:00:05]} 25. Kg2 {[%emt 0:04:23]} Qe6 {[%emt 0:03:53]} 26. Rhf1 {[%emt 0:01:02]} d6 {[%emt 0:00:33]} 27. Bf6 {[%emt 0:00:56]} Ke8 {[%emt 0:03:23]} 28. Bxe7 {[%emt 0:00:50]} Qxe7 {[%emt 0:00:16]} 29. Rae1 {[%emt 0:00:31]} Be6 {[%emt 0:00:05]} 30. a3 {[%emt 0:00:24]} Rd8 {[%emt 0:00:12]} 31. Rf2 {[%emt 0:01:20]} Kd7 {[%emt 0:01:27]} 32. Rd2 {[%emt 0:00:40]} Qg5 {[%emt 0:00:27]} 33. Rd4 {[%emt 0:00:47]} h5 {[%emt 0:00:26]} 34. h4 {[%emt 0:00:18]} Qe5 {[%emt 0:00:47]} 35. Red1 {[%emt 0:01:18]} Re8 {[%emt 0:00:49]} 36. Qe3 {[%emt 0:00:24]} Rg8 {[%emt 0:01:10]} 37. b4 {[%emt 0:01:34] normal} 1/2-1/2

[Event "DVM U20w 2019"]
[Site "Braunschweig"]
[Date "2019.12.28"]
[Round "3"]
[White "Relógio Stauber, Anna"]
[Black "Peglau, Charis"]
[Result "1/2-1/2"]
[ECO "D04"]
[WhiteElo "1396"]
[BlackElo "1728"]
[Annotator "NA RC"]
[PlyCount "87"]
[EventDate "2019.12.27"]
[EventType "team-tourn"]
[EventRounds "7"]
[EventCountry "GER"]
[SourceTitle "playchess.com"]
[Source "ChessBase"]
[SourceQuality "1"]
[WhiteTeam "SC Borussia Lichtenberg"]
[BlackTeam "Schachzentrum Seeblick"]
[TimeControl "40/5400+30:1800+30"]

1. d4 {[%emt 0:00:00]} d5 {[%emt 0:00:00]} 2. Nf3 {[%emt 0:00:00]} Nf6 {[%emt 0:00:00]} 3. e3 {[%emt 0:00:02]} Bf5 {[%emt 0:00:20]} 4. c4 {[%emt 0:00:58]} e6 {[%emt 0:01:06]} 5. Bd3 {[%emt 0:01:24]} Bg6 {[%emt 0:01:06]} 6. O-O {[%emt 0:01:01]} c5 {[%emt 0:02:28]} 7. Nc3 {[%emt 0:02:32]} Nc6 {[%emt 0:02:00]} 8. b3 {[%emt 0:03:53]} Rc8 {[%emt 0:03:47]} 9. Bb2 {[%emt 0:04:10]} Bxd3 {[%emt 0:01:59]} 10. Qxd3 {[%emt 0:00:52]} Be7 {[%emt 0:02:24]} 11. Rfd1 {[%emt 0:03:04]} dxc4 {[%emt 0:01:03]} 12. bxc4 {[%emt 0:01:43]} cxd4 {[%emt 0:00:19]} 13. exd4 {[%emt 0:01:04]} O-O {[%emt 0:01:06]} 14. Ne2 {[%emt 0:07:32]} Nb4 {[%emt 0:01:04]} 15. Qb3 {[%emt 0:02:41]} Qc7 {[%emt 0:02:45]} 16. Rac1 {[%emt 0:01:35]} Rfd8 {[%emt 0:04:09]} 17. a3 {[%emt 0:03:04]} Nc6 {[%emt 0:00:17]} 18. Bc3 {[%emt 0:07:24]} Rd7 {[%emt 0:05:29]} 19. Bb4 {[%emt 0:02:39]} Na5 {[%emt 0:02:33]} 20. Bxa5 {[%emt 0:01:10]} Qxa5 {[%emt 0:00:09]} 21. Rd3 {[%emt 0:02:28]} Rdc7 {[%emt 0:02:26]} 22. Ne5 {[%emt 0:02:27]} Bd6 {[%emt 0:01:54]} 23. Re3 {[%emt 0:02:45]} Qa6 {[%emt 0:02:02]} 24. Rec3 {[%emt 0:02:35]} Bxe5 {[%emt 0:01:21]} 25. dxe5 {[%emt 0:00:11]} Ne4 {[%emt 0:00:26]} 26. R3c2 {[%emt 0:02:02]} Nc5 {[%emt 0:03:05]} 27. Qe3 {[%emt 0:01:07]} Nd7 {[%emt 0:01:45]} 28. c5 {[%emt 0:05:07]} Qa5 {[%emt 0:00:59]} 29. Qc3 {[%emt 0:02:25]} Qxc3 {[%emt 0:00:23]} 30. Rxc3 {[%emt 0:00:10]} Rxc5 {[%emt 0:00:17]} 31. Rxc5 {[%emt 0:00:24]} Rxc5 {[%emt 0:00:07]} 32. Rd1 {[%emt 0:00:53]} Rd5 {[%emt 0:00:46]} 33. Rxd5 {[%emt 0:00:11]} exd5 {[%emt 0:00:06]} 34. f4 {[%emt 0:00:17]} Kf8 {[%emt 0:01:31]} 35. Kf2 {[%emt 0:00:22]} Nb6 {[%emt 0:00:36]} 36. Nc3 {[%emt 0:01:28]} a6 {[%emt 0:01:16]} 37. Ke2 {[%emt 0:02:03]} Ke7 {[%emt 0:00:37]} 38. Kd3 {[%emt 0:00:37]} Ke6 {[%emt 0:04:33]} 39. g4 {[%emt 0:01:08]} f6 {[%emt 0:05:02]} 40. exf6 {[%emt 0:01:00]} Kxf6 {[%emt 0:00:23]} 41. Kd4 {[%emt 0:31:10]} Ke6 {[%emt 0:30:23]} 42. Kc5 {[%emt 0:03:49]} Nd7+ {[%emt 0:00:27]} 43. Kd4 {[%emt 0:00:39]} Nb6 {[%emt 0:10:31]} 44. Kc5 {[%emt 0:02:14] normal} 1/2-1/2

[Event "DVM U20w 2019"]
[Site "Braunschweig"]
[Date "2019.12.28"]
[Round "3"]
[White "Zoll, Cindy"]
[Black "Hallfarth, Luise"]
[Result "1-0"]
[ECO "A03"]
[WhiteElo "1387"]
[BlackElo "1517"]
[Annotator "NA RC"]
[PlyCount "73"]
[EventDate "2019.12.27"]
[EventType "team-tourn"]
[EventRounds "7"]
[EventCountry "GER"]
[SourceTitle "playchess.com"]
[Source "ChessBase"]
[SourceQuality "1"]
[WhiteTeam "SG Güstrow/Teterow"]
[BlackTeam "SK Nordhorn-Blanke"]
[TimeControl "40/5400+30:1800+30"]

1. f4 {[%emt 0:00:00]} d5 {[%emt 0:00:00]} 2. e3 {[%emt 0:00:00]} Nf6 {[%emt 0:00:34]} 3. Nf3 {[%emt 0:00:07]} Bg4 {[%emt 0:00:09]} 4. d4 {[%emt 0:00:43]} e6 {[%emt 0:01:24]} 5. Bd3 {[%emt 0:00:37]} Bd6 {[%emt 0:00:41]} 6. O-O {[%emt 0:00:35]} O-O {[%emt 0:00:08]} 7. Qe1 {[%emt 0:00:39]} Bxf3 {[%emt 0:02:41]} 8. Rxf3 {[%emt 0:00:17]} c5 {[%emt 0:00:18]} 9. c3 {[%emt 0:01:17]} a6 {[%emt 0:01:39]} 10. Qh4 {[%emt 0:06:01]} Nc6 {[%emt 0:04:32]} 11. Rh3 {[%emt 0:02:45]} h6 {[%emt 0:02:05]} 12. g4 {[%emt 0:04:29]} Ne4 {[%emt 0:03:04]} 13. g5 {[%emt 0:10:03]} Be7 {[%emt 0:06:07]} 14. Qh5 {[%emt 0:08:16]} Nxg5 {[%emt 0:18:47]} 15. fxg5 {[%emt 0:02:26]} Bxg5 {[%emt 0:05:08]} 16. Rg3 {[%emt 0:00:59]} cxd4 {[%emt 0:00:45]} 17. cxd4 {[%emt 0:00:39]} e5 {[%emt 0:00:28]} 18. dxe5 {[%emt 0:01:52]} Nxe5 {[%emt 0:00:16]} 19. Bc2 {[%emt 0:00:28]} d4 {[%emt 0:01:04]} 20. Be4 {[%emt 0:01:09]} dxe3 {[%emt 0:01:20]} 21. Bxe3 {[%emt 0:01:17]} Bxe3+ {[%emt 0:00:54]} 22. Rxe3 {[%emt 0:00:15]} Qd4 {[%emt 0:00:27]} 23. Bh7+ {[%emt 0:02:50]} Kxh7 {[%emt 0:01:19]} 24. Qxe5 {[%emt 0:00:08]} Qd1+ {[%emt 0:01:04]} 25. Re1 {[%emt 0:01:11]} Qg4+ {[%emt 0:00:15]} 26. Kf1 {[%emt 0:05:10]} Qf3+ {[%emt 0:02:14]} 27. Kg1 {[%emt 0:00:10]} Qg4+ {[%emt 0:00:10]} 28. Kf2 {[%emt 0:08:08]} Qh4+ {[%emt 0:00:51]} 29. Kf3 {[%emt 0:01:18]} Qh3+ {[%emt 0:00:39] normal} 30. Qg3 {[%emt 0:00:49]} Qf5+ {[%emt 0:00:32] normal} 31. Kg2 {[%emt 0:03:06]} Qc2+ {[%emt 0:00:58]} 32. Qf2 {[%emt 0:00:33] normal} Qc6+ {[%emt 0:00:56] normal} 33. Kg1 {[%emt 0:00:54]} Qg6+ {[%emt 0:00:33]} 34. Kh1 {[%emt 0:00:36] normal} f5 {[%emt 0:00:55] normal} 35. Rg1 {[%emt 0:01:58]} Qc6+ {[%emt 0:00:21]} 36. Qg2 {[%emt 0:00:15] normal} Qb5 {[%emt 0:00:27] normal} 37. Qxg7# {normal} 1-0

[Event "DVM U20w 2019"]
[Site "Braunschweig"]
[Date "2019.12.28"]
[Round "3"]
[White "Wilhelm, Anna-Lena"]
[Black "Nwatu, Emily"]
[Result "1-0"]
[ECO "C00"]
[WhiteElo "1291"]
[BlackElo "1141"]
[Annotator "NA RC"]
[PlyCount "55"]
[EventDate "2019.12.27"]
[EventType "team-tourn"]
[EventRounds "7"]
[EventCountry "GER"]
[SourceTitle "playchess.com"]
[Source "ChessBase"]
[SourceQuality "1"]
[WhiteTeam "SG Blau-Weiß Stadtilm"]
[BlackTeam "SG Trier"]
[TimeControl "40/5400+30:1800+30"]

1. e4 {[%emt 0:00:00]} e6 {[%emt 0:00:00]} 2. Qe2 {[%emt 0:00:00]} d5 {[%emt 0:00:22]} 3. exd5 {[%emt 0:00:00]} Qxd5 {[%emt 0:00:14]} 4. Nc3 {[%emt 0:00:00]} Qd8 {[%emt 0:00:09]} 5. Nf3 {[%emt 0:00:55]} Nf6 {[%emt 0:00:24]} 6. d4 {[%emt 0:08:30]} Bb4 {[%emt 0:03:00]} 7. Bd2 {[%emt 0:07:58]} O-O {[%emt 0:00:43]} 8. g3 {[%emt 0:02:54]} Nc6 {[%emt 0:00:31]} 9. Qc4 {[%emt 0:08:20]} Re8 {[%emt 0:08:08]} 10. Ne5 {[%emt 0:07:00]} Nxe5 {[%emt 0:00:49]} 11. dxe5 {[%emt 0:00:27]} Bxc3 {[%emt 0:00:42]} 12. Bxc3 {[%emt 0:01:53]} Nh5 {[%emt 0:01:27]} 13. g4 {[%emt 0:15:15]} Nf6 {[%emt 0:02:06]} 14. exf6 {[%emt 0:00:33]} g6 {[%emt 0:00:45]} 15. Rd1 {[%emt 0:06:45]} Bd7 {[%emt 0:04:01]} 16. Qd4 {[%emt 0:03:30]} Bc6 {[%emt 0:01:05]} 17. Qf4 {[%emt 0:05:48]} Qxd1+ {[%emt 0:02:32]} 18. Kxd1 {[%emt 0:00:47]} Kh8 {[%emt 0:00:54]} 19. Bd3 Rad8 {[%emt 0:02:21]} 20. Kc1 {[%emt 0:13:31]} Rg8 {[%emt 0:00:24]} 21. Re1 {[%emt 0:06:05]} Rge8 {[%emt 0:01:09]} 22. Qh6 {[%emt 0:00:25]} Rg8 {[%emt 0:00:17]} 23. Rxe6 {[%emt 0:00:46]} Bd5 {[%emt 0:00:33]} 24. Re7 {[%emt 0:00:35]} Rc8 {[%emt 0:01:25]} 25. Rxf7 {[%emt 0:00:57]} Bxf7 {[%emt 0:00:13]} 26. Bc4 {[%emt 0:00:05]} Bxc4 {[%emt 0:00:12]} 27. f7+ {[%emt 0:00:03] normal} Rg7 {[%emt 0:00:31]} 28. Qxg7# {normal} 1-0

[Event "DVM U20w 2019"]
[Site "Braunschweig"]
[Date "2019.12.28"]
[Round "3"]
[White "Martin, Anastasia"]
[Black "Giede, Anna-Blume"]
[Result "0-1"]
[ECO "B12"]
[WhiteElo "1235"]
[BlackElo "1582"]
[Annotator "NA RC"]
[PlyCount "78"]
[EventDate "2019.12.27"]
[EventType "team-tourn"]
[EventRounds "7"]
[EventCountry "GER"]
[SourceTitle "playchess.com"]
[Source "ChessBase"]
[SourceQuality "1"]
[WhiteTeam "OSG Baden-Baden"]
[BlackTeam "TuRa Harksheide Norderstedt"]
[TimeControl "40/5400+30:1800+30"]

1. e4 {[%emt 0:00:00]} c6 {[%emt 0:00:00]} 2. d4 {[%emt 0:00:00]} d5 {[%emt 0:00:00]} 3. e5 {[%emt 0:00:00]} c5 {[%emt 0:00:00]} 4. c3 {[%emt 0:00:00]} Nc6 {[%emt 0:00:04]} 5. Nf3 {[%emt 0:00:26]} cxd4 {[%emt 0:00:25]} 6. cxd4 {[%emt 0:01:25]} Bg4 {[%emt 0:03:45]} 7. Be2 {[%emt 0:01:47]} e6 {[%emt 0:06:11]} 8. O-O {[%emt 0:07:21]} Qb6 {[%emt 0:16:20]} 9. Nc3 {[%emt 0:34:11]} Bxf3 {[%emt 0:08:45]} 10. Bxf3 {[%emt 0:00:46]} Qxd4 {[%emt 0:04:29]} 11. Qb3 {[%emt 0:05:58]} Qb4 {[%emt 0:08:58]} 12. Qxb4 {[%emt 0:05:08]} Bxb4 {[%emt 0:00:10]} 13. Bf4 {[%emt 0:01:25]} Nge7 {[%emt 0:07:05]} 14. a3 {[%emt 0:05:01]} Bxc3 {[%emt 0:01:02]} 15. bxc3 {[%emt 0:00:11]} Ng6 {[%emt 0:00:10]} 16. Bg3 {[%emt 0:08:06]} Ngxe5 {[%emt 0:00:52]} 17. Bxe5 {[%emt 0:04:59]} Nxe5 {[%emt 0:00:05]} 18. Bxd5 {[%emt 0:03:13]} Nc6 {[%emt 0:22:16]} 19. Bf3 {[%emt 0:03:01]} Rc8 {[%emt 0:01:05]} 20. Rfd1 {[%emt 0:01:11]} Ke7 {[%emt 0:01:27]} 21. Rab1 {[%emt 0:04:28]} b6 {[%emt 0:00:19]} 22. Rd2 {[%emt 0:00:20]} Ne5 {[%emt 0:02:24]} 23. Rb3 {[%emt 0:01:34]} Rc7 {[%emt 0:04:40]} 24. Be2 {[%emt 0:02:55]} Rhc8 {[%emt 0:01:06]} 25. Rc2 {[%emt 0:00:18]} Rc5 {[%emt 0:02:41]} 26. f4 {[%emt 0:01:35]} Nc6 {[%emt 0:00:11]} 27. Rb5 {[%emt 0:03:02]} Rxb5 {[%emt 0:04:49]} 28. Bxb5 {[%emt 0:00:20]} Nd4 {[%emt 0:00:04]} 29. Ba6 {[%emt 0:02:04]} Nxc2 {[%emt 0:00:06]} 30. Bxc8 {[%emt 0:00:10]} Nxa3 {[%emt 0:00:03]} 31. Kf2 {[%emt 0:01:07]} Kd6 {[%emt 0:00:54]} 32. Ke3 {[%emt 0:00:43]} Kc5 {[%emt 0:00:32]} 33. Kd3 {[%emt 0:00:55] normal} Nb5 {[%emt 0:00:55]} 34. Ba6 {[%emt 0:01:05] normal} Nc7 {[%emt 0:00:41]} 35. Bc4 {[%emt 0:00:41] normal} a5 {[%emt 0:01:35]} 36. Bb3 {[%emt 0:00:25] normal} Nd5 {[%emt 0:00:40]} 37. g3 {[%emt 0:00:18]} b5 {[%emt 0:00:52] normal} 38. c4 {[%emt 0:01:39] normal} a4 {[%emt 0:01:32]} 39. Ba2 {[%emt 0:01:05]} Nb4+ {[%emt 0:00:05] normal Kd4+} 0-1

[Event "DVM U20w 2019"]
[Site "Braunschweig"]
[Date "2019.12.28"]
[Round "3"]
[White "Strobel, Joanna"]
[Black "Sauer, Annika"]
[Result "0-1"]
[ECO "B01"]
[WhiteElo "1140"]
[BlackElo "1569"]
[Annotator "NA RC"]
[PlyCount "50"]
[EventDate "2019.12.27"]
[EventType "team-tourn"]
[EventRounds "7"]
[EventCountry "GER"]
[SourceTitle "playchess.com"]
[Source "ChessBase"]
[SourceQuality "1"]
[WhiteTeam "SC Erlangen 48/88"]
[BlackTeam "Leegebrucher SF"]
[TimeControl "40/5400+30:1800+30"]

1. e4 {[%emt 0:00:00]} d5 {[%emt 0:00:00]} 2. exd5 {[%emt 0:00:00]} Qxd5 {[%emt 0:00:00]} 3. Nc3 {[%emt 0:00:00]} Qd6 {[%emt 0:00:00]} 4. Bc4 {[%emt 0:00:01]} Nf6 {[%emt 0:02:19]} 5. d4 {[%emt 0:03:48]} a6 {[%emt 0:01:20]} 6. Be3 {[%emt 0:04:16]} Nc6 {[%emt 0:13:30]} 7. Qd2 {[%emt 0:04:27]} Bf5 {[%emt 0:13:37]} 8. O-O-O {[%emt 0:02:26]} Na5 {[%emt 0:13:18]} 9. Bd3 {[%emt 0:08:41]} Bxd3 {[%emt 0:03:33]} 10. Qxd3 {[%emt 0:00:30]} e6 {[%emt 0:02:27]} 11. Qe2 {[%emt 0:04:18]} Be7 {[%emt 0:08:29]} 12. f4 {[%emt 0:07:41]} Nd5 {[%emt 0:06:19]} 13. Ne4 {[%emt 0:06:16]} Qc6 {[%emt 0:01:33]} 14. Bd2 {[%emt 0:01:15]} Nc4 {[%emt 0:00:40]} 15. Nc5 {[%emt 0:03:04]} Nxd2 {[%emt 0:00:45]} 16. Qxd2 {[%emt 0:00:19]} Bxc5 {[%emt 0:00:15]} 17. dxc5 {[%emt 0:00:29]} Qxc5 {[%emt 0:00:21]} 18. f5 {[%emt 0:00:39]} O-O-O {[%emt 0:02:01]} 19. Qe1 {[%emt 0:05:36]} Ne3 {[%emt 0:01:57]} 20. Rd2 {[%emt 0:01:28]} Rxd2 {[%emt 0:00:24]} 21. Qxd2 {[%emt 0:00:12]} Rd8 {[%emt 0:00:05]} 22. Qe2 {[%emt 0:01:13]} Rd1+ {[%emt 0:00:52]} 23. Qxd1 {[%emt 0:00:10]} Nxd1 {[%emt 0:00:03]} 24. Kxd1 {[%emt 0:00:06]} Qd5+ {[%emt 0:00:09]} 25. Ke1 {[%emt 0:00:35]} Qxg2 {[%emt 0:00:06] normal} 0-1

[Event "DVM U20w 2019"]
[Site "Braunschweig"]
[Date "2019.12.28"]
[Round "3"]
[White "Danilova, Sofia"]
[Black "Prölß, Clara"]
[Result "1-0"]
[ECO "A06"]
[WhiteElo "980"]
[BlackElo "1000"]
[Annotator "NA RC"]
[PlyCount "40"]
[EventDate "2019.12.27"]
[EventType "team-tourn"]
[EventRounds "7"]
[EventCountry "GER"]
[SourceTitle "playchess.com"]
[Source "ChessBase"]
[SourceQuality "1"]
[WhiteTeam "SV Lingen"]
[BlackTeam "SC Bavaria Regensburg"]
[TimeControl "40/5400+30:1800+30"]

1. Nf3 {[%emt 0:00:00]} d5 {[%emt 0:00:00]} 2. g3 {[%emt 0:00:00]} Nf6 {[%emt 0:00:03]} 3. Bg2 {[%emt 0:00:00]} c5 {[%emt 0:00:30]} 4. O-O {[%emt 0:01:44]} Nc6 {[%emt 0:01:13]} 5. d3 {[%emt 0:00:44]} e6 {[%emt 0:00:57]} 6. c4 {[%emt 0:00:37]} Bd6 {[%emt 0:04:47]} 7. Bg5 {[%emt 0:03:18]} O-O {[%emt 0:04:44]} 8. Nc3 {[%emt 0:01:08]} dxc4 {[%emt 0:06:19]} 9. dxc4 {[%emt 0:02:30]} Be7 {[%emt 0:05:59]} 10. Bf4 {[%emt 0:02:09]} Bd7 {[%emt 0:13:19]} 11. Nb5 {[%emt 0:00:59]} a6 {[%emt 0:06:29]} 12. Nd6 {[%emt 0:00:33]} Bc8 {[%emt 0:08:00]} 13. Ne5 {[%emt 0:08:10]} Bxd6 {[%emt 0:04:35]} 14. Nxc6 {[%emt 0:00:23]} bxc6 15. Bxd6 {[%emt 0:00:25]} a5 {[%emt 0:10:13]} 16. Bxf8 Qxf8 {[%emt 0:00:42]} 17. Bxc6 {[%emt 0:00:53]} Ra6 {[%emt 0:01:44]} 18. Bb5 {[%emt 0:00:17]} Rb6 {[%emt 0:02:21]} 19. Qd3 {[%emt 0:04:22] normal} e5 {[%emt 0:07:32] normal} 20. Rfd1 {[%emt 0:00:37] normal} Bh3 {[%emt 0:02:54] normal} 1-0

[Event "DVM U20w 2019"]
[Site "Braunschweig"]
[Date "2019.12.28"]
[Round "4"]
[White "Ziegenfuss, Antonia"]
[Black "Jacoby, Angelina"]
[Result "1-0"]
[ECO "D35"]
[WhiteElo "2052"]
[BlackElo "1635"]
[Annotator "NA"]
[PlyCount "57"]
[EventDate "2019.12.27"]
[EventType "team-tourn"]
[EventRounds "7"]
[EventCountry "GER"]
[SourceTitle "playchess.com"]
[Source "ChessBase"]
[SourceQuality "1"]
[WhiteTeam "OSG Baden-Baden"]
[BlackTeam "Leegebrucher SF"]
[TimeControl "40/5400+30:1800+30"]

1. d4 {[%emt 0:00:00]} d5 {[%emt 0:00:00]} 2. c4 {[%emt 0:00:00]} e6 {[%emt 0:00:00]} 3. Nc3 {[%emt 0:00:00]} Nf6 {[%emt 0:00:00]} 4. cxd5 {[%emt 0:00:00]} exd5 {[%emt 0:00:00]} 5. Bg5 {[%emt 0:00:00]} Be7 {[%emt 0:01:30]} 6. e3 {[%emt 0:00:05]} c6 {[%emt 0:00:29]} 7. Bd3 {[%emt 0:00:42]} Nbd7 {[%emt 0:00:33]} 8. Nge2 {[%emt 0:00:17]} h6 {[%emt 0:01:54]} 9. Bh4 {[%emt 0:00:32]} Nh5 {[%emt 0:01:26]} 10. Bxe7 {[%emt 0:00:59]} Qxe7 {[%emt 0:00:07]} 11. Qc2 {[%emt 0:00:58]} O-O {[%emt 0:01:52]} 12. O-O-O {[%emt 0:05:42]} Nhf6 {[%emt 0:00:18]} 13. h3 {[%emt 0:03:08]} b5 {[%emt 0:04:23]} 14. g4 {[%emt 0:02:02]} Re8 {[%emt 0:02:27]} 15. Ng3 {[%emt 0:08:03]} Nb6 {[%emt 0:00:16]} 16. Nf5 {[%emt 0:06:21]} Bxf5 {[%emt 0:02:27]} 17. gxf5 {[%emt 0:07:14]} Ne4 {[%emt 0:03:56]} 18. Bxe4 {[%emt 0:10:41]} dxe4 {[%emt 0:00:19]} 19. Rhg1 {[%emt 0:06:00]} a5 {[%emt 0:02:22]} 20. Rg4 {[%emt 0:02:57]} Nd5 {[%emt 0:06:13]} 21. Rdg1 {[%emt 0:09:51]} f6 {[%emt 0:01:00]} 22. Nxe4 {[%emt 0:04:35]} Kh8 {[%emt 0:06:30]} 23. Nc5 {[%emt 0:02:28]} Rg8 {[%emt 0:02:10]} 24. Ne6 {[%emt 0:02:14]} Nb4 {[%emt 0:03:41]} 25. Qe2 {[%emt 0:03:36]} Nxa2+ {[%emt 0:01:57]} 26. Kb1 {[%emt 0:00:12]} Nb4 {[%emt 0:00:28]} 27. Rg6 {[%emt 0:10:35] normal} Ra7 {[%emt 0:04:55] normal} 28. Qg4 {[%emt 0:02:10] normal} Qf7 {[%emt 0:01:33]} 29. Qh5 {[%emt 0:00:58] normal} 1-0

[Event "DVM U20w 2019"]
[Site "Braunschweig"]
[Date "2019.12.28"]
[Round "4"]
[White "Miljkovic, Jovana"]
[Black "Möller, Lisa-Marie"]
[Result "1-0"]
[ECO "A04"]
[WhiteElo "2021"]
[BlackElo "1934"]
[Annotator "NA"]
[PlyCount "42"]
[EventDate "2019.12.27"]
[EventType "team-tourn"]
[EventRounds "7"]
[EventCountry "GER"]
[SourceTitle "playchess.com"]
[Source "ChessBase"]
[SourceQuality "1"]
[WhiteTeam "SV Lingen"]
[BlackTeam "Düsseldorfer SK"]
[TimeControl "40/5400+30:1800+30"]

1. Nf3 {[%emt 0:00:00]} c5 {[%emt 0:00:00]} 2. c4 {[%emt 0:00:00]} Nc6 {[%emt 0:00:00]} 3. e3 {[%emt 0:00:00]} Nf6 {[%emt 0:00:00]} 4. Nc3 {[%emt 0:00:00]} e6 {[%emt 0:01:04]} 5. d4 {[%emt 0:00:14]} cxd4 {[%emt 0:00:06]} 6. exd4 {[%emt 0:00:38]} d5 {[%emt 0:00:13]} 7. a3 {[%emt 0:00:57]} Be7 {[%emt 0:00:51]} 8. Be2 {[%emt 0:02:00]} O-O {[%emt 0:01:55]} 9. O-O {[%emt 0:00:03]} a6 {[%emt 0:04:40]} 10. Re1 {[%emt 0:04:21]} dxc4 {[%emt 0:04:02]} 11. Bxc4 {[%emt 0:00:04]} b5 {[%emt 0:01:39]} 12. Ba2 {[%emt 0:00:07]} Nd5 {[%emt 0:00:32]} 13. Nxd5 {[%emt 0:03:35]} exd5 {[%emt 0:00:14]} 14. Ne5 {[%emt 0:06:14]} Bb7 {[%emt 0:07:05]} 15. Bf4 {[%emt 0:03:56]} f6 {[%emt 0:09:32]} 16. Nxc6 {[%emt 0:03:33]} Bxc6 {[%emt 0:02:17]} 17. Rc1 {[%emt 0:06:06]} Rc8 {[%emt 0:05:40]} 18. Qe2 {[%emt 0:00:24]} Rf7 {[%emt 0:05:45]} 19. Qe6 {[%emt 0:01:19] normal} Bb7 {[%emt 0:04:52]} 20. Rxc8 {[%emt 0:01:37] normal} Bxc8 {[%emt 0:01:04]} 21. Qxd5 {[%emt 0:00:49] normal} Qf8 {[%emt 0:00:47] normal} 1-0

[Event "DVM U20w 2019"]
[Site "Braunschweig"]
[Date "2019.12.28"]
[Round "4"]
[White "Peglau, Mirjam"]
[Black "Brunner, Sophia"]
[Result "1-0"]
[ECO "A34"]
[WhiteElo "1916"]
[BlackElo "1852"]
[Annotator "NA"]
[PlyCount "45"]
[EventDate "2019.12.27"]
[EventType "team-tourn"]
[EventRounds "7"]
[EventCountry "GER"]
[SourceTitle "playchess.com"]
[Source "ChessBase"]
[SourceQuality "1"]
[WhiteTeam "Schachzentrum Seeblick"]
[BlackTeam "SK Nordhorn-Blanke"]
[TimeControl "40/5400+30:1800+30"]

1. c4 {[%emt 0:00:00]} Nf6 {[%emt 0:00:00]} 2. Nc3 {[%emt 0:00:02]} c5 {[%emt 0:00:00]} 3. Nf3 {[%emt 0:00:07]} d5 {[%emt 0:00:29]} 4. cxd5 {[%emt 0:00:15]} Nxd5 {[%emt 0:00:06]} 5. e3 {[%emt 0:03:04]} Nc6 {[%emt 0:02:01]} 6. Bb5 {[%emt 0:00:35]} Nxc3 {[%emt 0:03:57]} 7. bxc3 {[%emt 0:00:27]} Bd7 {[%emt 0:07:27]} 8. O-O {[%emt 0:00:16]} a6 {[%emt 0:05:33]} 9. Be2 {[%emt 0:00:14]} e5 {[%emt 0:05:03]} 10. d4 {[%emt 0:01:15]} Bd6 {[%emt 0:09:22]} 11. Rb1 {[%emt 0:09:28]} Rb8 {[%emt 0:07:04]} 12. dxe5 {[%emt 0:01:13]} Bxe5 {[%emt 0:02:32]} 13. Nxe5 {[%emt 0:00:13]} Nxe5 {[%emt 0:00:38]} 14. Qd6 {[%emt 0:00:13]} Nc6 {[%emt 0:02:28]} 15. Qxc5 {[%emt 0:00:26]} Qe7 {[%emt 0:00:52]} 16. Qxe7+ {[%emt 0:00:55]} Kxe7 {[%emt 0:00:29]} 17. Ba3+ {[%emt 0:00:17]} Kf6 {[%emt 0:01:46]} 18. Bd6 {[%emt 0:01:16]} Rbd8 {[%emt 0:00:52]} 19. Bc7 {[%emt 0:01:16]} Ra8 {[%emt 0:01:18]} 20. Rxb7 {[%emt 0:00:30]} Be6 {[%emt 0:00:30]} 21. a3 {[%emt 0:01:46]} Ne7 {[%emt 0:00:40] normal} 22. e4 {[%emt 0:06:16]} Rhe8 {[%emt 0:02:15] normal} 23. f4 {[%emt 0:01:10] normal} 1-0